[Event "Late-Titled-Tuesday-Blitz-June-25-2024"]
[Site "Chess.com"]
[Date "2024.06.25"]
[Round "2"]
[White "KingCyber19"]
[Black "Seppppppy"]
[Result "0-1"]
[WhiteElo "2576"]
[BlackElo "2384"]
[TimeControl "180+1"]
[EndTime "14:15:43 PDT"]
[Termination "Seppppppy won by resignation"]

1. Nf3 {[%clk 0:02:40.7]} 1... Nf6 {[%clk 0:02:59.6]} 2. d4 {[%clk 0:02:41.6]}
2... g6 {[%clk 0:02:58.4]} 3. c4 {[%clk 0:02:40.5]} 3... Bg7 {[%clk 0:02:56.4]}
4. g3 {[%clk 0:02:41.4]} 4... O-O {[%clk 0:02:56.3]} 5. Bg2 {[%clk 0:02:42.3]}
5... c5 {[%clk 0:02:54.5]} 6. O-O {[%clk 0:02:43.2]} 6... cxd4 {[%clk
0:02:54.6]} 7. Nxd4 {[%clk 0:02:44.1]} 7... Nc6 {[%clk 0:02:55.2]} 8. Nc3 {[%clk
0:02:44.3]} 8... Qb6 {[%clk 0:02:40]} 9. Nb3 {[%clk 0:02:42.3]} 9... d6 {[%clk
0:02:38.6]} 10. Be3 {[%clk 0:02:41.8]} 10... Qc7 {[%clk 0:02:33.3]} 11. Rc1
{[%clk 0:02:39.4]} 11... Be6 {[%clk 0:02:29.5]} 12. Nd5 {[%clk 0:02:39.5]} 12...
Qd7 {[%clk 0:02:29.6]} 13. Bd4 {[%clk 0:02:36]} 13... Nxd4 {[%clk 0:02:27.2]}
14. Nxd4 {[%clk 0:02:35.5]} 14... Bxd5 {[%clk 0:02:25.5]} 15. cxd5 {[%clk
0:02:35.7]} 15... Rac8 {[%clk 0:02:25.2]} 16. Qd3 {[%clk 0:02:32.7]} 16... Rxc1
{[%clk 0:02:20.2]} 17. Rxc1 {[%clk 0:02:33.6]} 17... Rc8 {[%clk 0:02:20.4]} 18.
Rc4 {[%clk 0:02:20.3]} 18... Rc5 {[%clk 0:01:54.3]} 19. Nb3 {[%clk 0:02:01]}
19... Rxc4 {[%clk 0:01:05.9]} 20. Qxc4 {[%clk 0:02:01.9]} 20... h5 {[%clk
0:01:01.9]} 21. h3 {[%clk 0:01:25.5]} 21... Qf5 {[%clk 0:00:59]} 22. Kh2 {[%clk
0:01:19.7]} 22... Qxf2 {[%clk 0:00:55.8]} 23. Qc8+ {[%clk 0:01:18.9]} 23... Kh7
{[%clk 0:00:51.8]} 24. Qxb7 {[%clk 0:01:19.8]} 24... Ne4 {[%clk 0:00:50.8]} 25.
Qxe7 {[%clk 0:01:14.7]} 25... Be5 {[%clk 0:00:50.3]} 0-1

[Event "Late-Titled-Tuesday-Blitz-June-25-2024"]
[Site "Chess.com"]
[Date "2024.06.25"]
[Round "2"]
[White "el_sporco"]
[Black "mouseslips_are_the_best"]
[Result "0-1"]
[WhiteElo "2523"]
[BlackElo "2350"]
[TimeControl "180+1"]
[EndTime "14:15:46 PDT"]
[Termination "mouseslips_are_the_best won by resignation"]

1. e4 {[%clk 0:03:00.9]} 1... e6 {[%clk 0:02:59.8]} 2. d4 {[%clk 0:02:59.3]}
2... d5 {[%clk 0:03:00.2]} 3. Nd2 {[%clk 0:02:57.4]} 3... c5 {[%clk 0:02:59.8]}
4. Ngf3 {[%clk 0:02:55.3]} 4... Nc6 {[%clk 0:02:59.4]} 5. c3 {[%clk 0:02:54.6]}
5... cxd4 {[%clk 0:02:58.9]} 6. cxd4 {[%clk 0:02:53.8]} 6... dxe4 {[%clk
0:02:59.4]} 7. Nxe4 {[%clk 0:02:54.7]} 7... Nf6 {[%clk 0:02:59.2]} 8. Bd3 {[%clk
0:02:54.4]} 8... Bb4+ {[%clk 0:02:44.3]} 9. Bd2 {[%clk 0:02:47.7]} 9... Bxd2+
{[%clk 0:02:42.7]} 10. Qxd2 {[%clk 0:02:46.9]} 10... O-O {[%clk 0:02:41.1]} 11.
O-O {[%clk 0:02:45.1]} 11... h6 {[%clk 0:02:38.7]} 12. Rac1 {[%clk 0:02:37.9]}
12... Nd5 {[%clk 0:02:27.1]} 13. a3 {[%clk 0:02:23.6]} 13... Nce7 {[%clk
0:02:20.9]} 14. Bb1 {[%clk 0:02:22.6]} 14... b6 {[%clk 0:02:20.5]} 15. Qd3
{[%clk 0:02:19.3]} 15... Ng6 {[%clk 0:02:17.9]} 16. Ne5 {[%clk 0:02:17]} 16...
Ndf4 {[%clk 0:02:13.5]} 17. Qd2 {[%clk 0:02:14.7]} 17... Bb7 {[%clk 0:02:12.7]}
18. g3 {[%clk 0:02:02.3]} 18... Qxd4 {[%clk 0:02:08.7]} 19. gxf4 {[%clk
0:01:57.3]} 19... Qxd2 {[%clk 0:02:00.4]} 20. Nxd2 {[%clk 0:01:58.2]} 20... Nxf4
{[%clk 0:02:00.1]} 21. Be4 {[%clk 0:01:53.8]} 21... Bxe4 {[%clk 0:01:57.5]} 22.
Nxe4 {[%clk 0:01:54.7]} 22... Ne2+ {[%clk 0:01:57.9]} 23. Kg2 {[%clk 0:01:54.3]}
23... Nxc1 {[%clk 0:01:58.8]} 24. Rxc1 {[%clk 0:01:54.6]} 24... Rac8 {[%clk
0:01:59.3]} 25. Rd1 {[%clk 0:01:52.3]} 25... Rfd8 {[%clk 0:01:58.6]} 26. Rxd8+
{[%clk 0:01:43.3]} 26... Rxd8 {[%clk 0:01:58.2]} 27. Nc6 {[%clk 0:01:42.8]}
27... Rd7 {[%clk 0:01:57.9]} 28. Kf3 {[%clk 0:01:34.4]} 28... f6 {[%clk
0:01:54.5]} 29. Ke3 {[%clk 0:01:31.6]} 29... Kf7 {[%clk 0:01:53.8]} 30. Nc3
{[%clk 0:01:28.4]} 30... Rc7 {[%clk 0:01:50]} 31. Nd4 {[%clk 0:01:22.6]} 31...
e5 {[%clk 0:01:48]} 32. Ndb5 {[%clk 0:01:22.1]} 32... Rd7 {[%clk 0:01:47.7]} 33.
Ne4 {[%clk 0:01:18.6]} 33... Ke6 {[%clk 0:01:46.5]} 34. Nd2 {[%clk 0:01:16.1]}
34... f5 {[%clk 0:01:43.7]} 35. f3 {[%clk 0:01:15.6]} 35... g5 {[%clk
0:01:43.1]} 36. Nc3 {[%clk 0:01:14.9]} 36... h5 {[%clk 0:01:40.3]} 37. h3 {[%clk
0:01:13.9]} 37... h4 {[%clk 0:01:33.1]} 38. Ne2 {[%clk 0:01:12.6]} 38... Rg7
{[%clk 0:01:31]} 39. Kf2 {[%clk 0:01:07.1]} 39... g4 {[%clk 0:01:28.3]} 40. fxg4
{[%clk 0:01:08]} 40... fxg4 {[%clk 0:01:28.5]} 41. hxg4 {[%clk 0:01:08.3]} 41...
Rxg4 {[%clk 0:01:29.4]} 42. Nf3 {[%clk 0:01:08.8]} 42... e4 {[%clk 0:01:26.1]}
43. Nh2 {[%clk 0:01:07.9]} 43... Rg8 {[%clk 0:01:22.7]} 44. Ke3 {[%clk
0:01:08.4]} 44... Ke5 {[%clk 0:01:22.1]} 45. Nf1 {[%clk 0:01:05.9]} 45... h3
{[%clk 0:01:21]} 46. Kf2 {[%clk 0:01:02.3]} 46... Rg2+ {[%clk 0:01:18.8]} 47.
Ke1 {[%clk 0:01:02.6]} 47... h2 {[%clk 0:01:18]} 48. Nfg3 {[%clk 0:00:58.4]}
48... Rg1+ {[%clk 0:01:15.7]} 49. Kd2 {[%clk 0:00:58.5]} 49... h1=Q {[%clk
0:01:14.9]} 50. Nxh1 {[%clk 0:00:59.2]} 50... Rxh1 {[%clk 0:01:15.7]} 51. Kc3
{[%clk 0:00:59.3]} 51... Rh2 {[%clk 0:01:15.8]} 52. Nc1 {[%clk 0:00:59.3]} 52...
Kf4 {[%clk 0:01:14.8]} 53. Kc4 {[%clk 0:00:59.1]} 53... Rxb2 {[%clk 0:01:14.2]}
0-1

[Event "Late-Titled-Tuesday-Blitz-June-25-2024"]
[Site "Chess.com"]
[Date "2024.06.25"]
[Round "2"]
[White "ArchibaldCerveza29"]
[Black "chessbaerchen"]
[Result "0-1"]
[WhiteElo "2390"]
[BlackElo "2639"]
[TimeControl "180+1"]
[EndTime "14:15:48 PDT"]
[Termination "chessbaerchen won by resignation"]

1. e4 {[%clk 0:03:00.9]} 1... e6 {[%clk 0:02:59.3]} 2. d4 {[%clk 0:02:59.6]}
2... d5 {[%clk 0:02:59.7]} 3. Nc3 {[%clk 0:02:53]} 3... Nf6 {[%clk 0:02:58.9]}
4. e5 {[%clk 0:02:51.5]} 4... Nfd7 {[%clk 0:02:59.5]} 5. f4 {[%clk 0:02:45.1]}
5... c5 {[%clk 0:02:59.9]} 6. Nf3 {[%clk 0:02:42.2]} 6... Nc6 {[%clk 0:03:00.3]}
7. Be3 {[%clk 0:02:37.4]} 7... a6 {[%clk 0:03:00.9]} 8. Qd2 {[%clk 0:02:34.8]}
8... b5 {[%clk 0:03:01]} 9. a3 {[%clk 0:02:33.3]} 9... Be7 {[%clk 0:02:59.4]}
10. dxc5 {[%clk 0:02:26.7]} 10... Bxc5 {[%clk 0:02:58.2]} 11. Bxc5 {[%clk
0:02:23.5]} 11... Nxc5 {[%clk 0:02:59.1]} 12. Nd4 {[%clk 0:02:20.4]} 12... Bb7
{[%clk 0:02:57]} 13. Nxc6 {[%clk 0:02:14.9]} 13... Bxc6 {[%clk 0:02:57.9]} 14.
Qd4 {[%clk 0:02:12]} 14... Qe7 {[%clk 0:02:52.1]} 15. Be2 {[%clk 0:01:57.9]}
15... O-O {[%clk 0:02:47.4]} 16. O-O {[%clk 0:01:57.2]} 16... f6 {[%clk
0:02:47.8]} 17. Rae1 {[%clk 0:01:51.2]} 17... fxe5 {[%clk 0:02:45.4]} 18. Qxe5
{[%clk 0:01:49.7]} 18... Rad8 {[%clk 0:02:36.8]} 19. Bg4 {[%clk 0:01:44.1]}
19... Rf6 {[%clk 0:02:37.2]} 20. f5 {[%clk 0:01:30.7]} 20... d4 {[%clk
0:02:34.4]} 21. Nd1 {[%clk 0:01:17.6]} 21... d3 {[%clk 0:02:18.6]} 22. Ne3
{[%clk 0:01:06.6]} 22... dxc2 {[%clk 0:02:11]} 23. fxe6 {[%clk 0:00:43]} 23...
Nd3 {[%clk 0:02:08.6]} 24. Nf5 {[%clk 0:00:43.4]} 24... Qa7+ {[%clk 0:01:49.6]}
25. Qe3 {[%clk 0:00:37.4]} 25... Qxe3+ {[%clk 0:01:44.6]} 26. Rxe3 {[%clk
0:00:13.5]} 26... Rxf5 {[%clk 0:01:25.3]} 27. Bxf5 {[%clk 0:00:12.7]} 27... c1=Q
{[%clk 0:01:24.4]} 28. Rxc1 {[%clk 0:00:12.6]} 28... Nxc1 {[%clk 0:01:25.3]} 29.
Rc3 {[%clk 0:00:13]} 29... Ne2+ {[%clk 0:01:25.1]} 30. Kf2 {[%clk 0:00:13.5]}
30... Nxc3 {[%clk 0:01:25.9]} 31. e7 {[%clk 0:00:14.4]} 31... Rd2+ {[%clk
0:01:17]} 32. Ke3 {[%clk 0:00:11]} 32... Re2+ {[%clk 0:01:16.5]} 33. Kd4 {[%clk
0:00:09.3]} 0-1

[Event "Late-Titled-Tuesday-Blitz-June-25-2024"]
[Site "Chess.com"]
[Date "2024.06.25"]
[Round "2"]
[White "AthanasiusLefebvre"]
[Black "RaugintaBulba"]
[Result "0-1"]
[WhiteElo "2062"]
[BlackElo "2453"]
[TimeControl "180+1"]
[EndTime "14:15:48 PDT"]
[Termination "RaugintaBulba won on time"]

1. d3 {[%clk 0:03:00.9]} 1... d5 {[%clk 0:02:58.2]} 2. Nf3 {[%clk 0:03:00.9]}
2... Nf6 {[%clk 0:02:58.2]} 3. g3 {[%clk 0:03:01.3]} 3... g6 {[%clk 0:02:56]} 4.
Bg2 {[%clk 0:03:01.7]} 4... Bg7 {[%clk 0:02:56.8]} 5. O-O {[%clk 0:03:02.1]}
5... O-O {[%clk 0:02:57.3]} 6. c4 {[%clk 0:03:02.6]} 6... c6 {[%clk 0:02:54.1]}
7. Nc3 {[%clk 0:03:01.8]} 7... Nbd7 {[%clk 0:02:52]} 8. Rb1 {[%clk 0:03:01.3]}
8... e5 {[%clk 0:02:51.9]} 9. b4 {[%clk 0:03:00.8]} 9... h6 {[%clk 0:02:44.8]}
10. b5 {[%clk 0:03:00.8]} 10... e4 {[%clk 0:02:43.7]} 11. Nd4 {[%clk 0:02:39.5]}
11... Nh5 {[%clk 0:02:08.8]} 12. e3 {[%clk 0:01:59.6]} 12... c5 {[%clk
0:02:06.1]} 13. Nde2 {[%clk 0:01:55.4]} 13... exd3 {[%clk 0:01:38.6]} 14. Qxd3
{[%clk 0:01:48.1]} 14... d4 {[%clk 0:01:38.8]} 15. exd4 {[%clk 0:01:43.7]} 15...
cxd4 {[%clk 0:01:39.7]} 16. Nd5 {[%clk 0:01:30.9]} 16... Ne5 {[%clk 0:01:31]}
17. Qb3 {[%clk 0:01:30.7]} 17... Bf5 {[%clk 0:01:25.7]} 18. Rb2 {[%clk
0:01:11.1]} 18... Bd3 {[%clk 0:01:17.5]} 19. c5 {[%clk 0:00:43.1]} 19... Bc4
{[%clk 0:01:15.8]} 20. Qd1 {[%clk 0:00:07.7]} 20... Bxd5 {[%clk 0:01:15.6]} 21.
Nxd4 {[%clk 0:00:06.4]} 21... Bxg2 {[%clk 0:01:15.2]} 22. Kxg2 {[%clk
0:00:06.1]} 22... Qd5+ {[%clk 0:01:15.8]} 23. Nf3 {[%clk 0:00:04.2]} 23... Qxf3+
{[%clk 0:01:16.1]} 24. Qxf3 {[%clk 0:00:04.2]} 24... Nxf3 {[%clk 0:01:17]} 25.
Kxf3 {[%clk 0:00:04.8]} 25... Bxb2 {[%clk 0:01:17.6]} 26. Bxb2 {[%clk
0:00:05.6]} 26... Rac8 {[%clk 0:01:12.7]} 27. Rc1 {[%clk 0:00:05.4]} 27... Ng7
{[%clk 0:01:13.1]} 0-1

[Event "Late-Titled-Tuesday-Blitz-June-25-2024"]
[Site "Chess.com"]
[Date "2024.06.25"]
[Round "2"]
[White "Duhless"]
[Black "Defenstrator"]
[Result "1-0"]
[WhiteElo "3096"]
[BlackElo "2423"]
[TimeControl "180+1"]
[EndTime "14:15:50 PDT"]
[Termination "Duhless won by resignation"]

1. e4 {[%clk 0:03:00.9]} 1... e5 {[%clk 0:02:59.5]} 2. Nc3 {[%clk 0:02:57.4]}
2... Nc6 {[%clk 0:02:58.5]} 3. f4 {[%clk 0:02:58.2]} 3... exf4 {[%clk
0:02:58.3]} 4. d4 {[%clk 0:02:58.4]} 4... Qh4+ {[%clk 0:02:50.4]} 5. Ke2 {[%clk
0:02:58.3]} 5... d5 {[%clk 0:02:48.6]} 6. Nf3 {[%clk 0:02:50.3]} 6... Bg4 {[%clk
0:02:38.3]} 7. exd5 {[%clk 0:02:41.1]} 7... O-O-O {[%clk 0:02:31.9]} 8. dxc6
{[%clk 0:02:30]} 8... Bc5 {[%clk 0:02:31.4]} 9. cxb7+ {[%clk 0:02:04.9]} 9...
Kb8 {[%clk 0:02:31.8]} 10. Nb5 {[%clk 0:01:51.8]} 10... Nf6 {[%clk 0:02:24]} 11.
Kd3 {[%clk 0:01:38.9]} 11... Bxf3 {[%clk 0:01:55.8]} 12. Qxf3 {[%clk 0:01:35.3]}
12... Qe1 {[%clk 0:01:16.7]} 13. Bxf4 {[%clk 0:01:29]} 13... Rxd4+ {[%clk
0:00:54]} 14. Nxd4 {[%clk 0:01:27.5]} 14... Qxa1 {[%clk 0:00:47.2]} 15. Nc6+
{[%clk 0:01:27.2]} 15... Kxb7 {[%clk 0:00:47.1]} 16. Kc4 {[%clk 0:01:26.2]}
16... Qxa2+ {[%clk 0:00:37.3]} 17. Kxc5 {[%clk 0:01:22.6]} 17... Nd7+ {[%clk
0:00:30.5]} 18. Kd4 {[%clk 0:01:22.3]} 18... Qxb2+ {[%clk 0:00:27]} 19. Ke3
{[%clk 0:01:10.8]} 19... Re8+ {[%clk 0:00:09.6]} 20. Kf2 {[%clk 0:01:03.5]}
20... Qxc2+ {[%clk 0:00:05.3]} 21. Kg3 {[%clk 0:01:01]} 21... Qxc6 {[%clk
0:00:03.9]} 22. Ba6+ {[%clk 0:01:00.6]} 1-0

[Event "Late-Titled-Tuesday-Blitz-June-25-2024"]
[Site "Chess.com"]
[Date "2024.06.25"]
[Round "2"]
[White "egnfanclub"]
[Black "Crazy_girl99"]
[Result "0-1"]
[WhiteElo "2365"]
[BlackElo "2697"]
[TimeControl "180+1"]
[EndTime "14:15:51 PDT"]
[Termination "Crazy_girl99 won by checkmate"]

1. e4 {[%clk 0:03:00.9]} 1... e5 {[%clk 0:02:51.8]} 2. Nf3 {[%clk 0:03:00.3]}
2... Nc6 {[%clk 0:02:51.3]} 3. Bc4 {[%clk 0:02:56.2]} 3... Bc5 {[%clk
0:02:50.8]} 4. c3 {[%clk 0:02:55.7]} 4... Nf6 {[%clk 0:02:50.6]} 5. d4 {[%clk
0:02:56]} 5... exd4 {[%clk 0:02:49.7]} 6. b4 {[%clk 0:02:56.1]} 6... Bb6 {[%clk
0:02:36.8]} 7. e5 {[%clk 0:02:56.2]} 7... d5 {[%clk 0:02:36.1]} 8. exf6 {[%clk
0:02:55.2]} 8... dxc4 {[%clk 0:02:35.6]} 9. Qe2+ {[%clk 0:02:48.8]} 9... Be6
{[%clk 0:02:34.3]} 10. b5 {[%clk 0:02:45.9]} 10... d3 {[%clk 0:02:26.8]} 11. Qe4
{[%clk 0:02:32.5]} 11... Na5 {[%clk 0:02:22]} 12. fxg7 {[%clk 0:02:28.8]} 12...
Rg8 {[%clk 0:02:21.9]} 13. Bg5 {[%clk 0:02:13.9]} 13... Qd5 {[%clk 0:02:13.6]}
14. Qxh7 {[%clk 0:02:13.9]} 14... Kd7 {[%clk 0:02:10.9]} 15. Bf6 {[%clk
0:02:02.8]} 15... Bf5 {[%clk 0:02:04.2]} 16. Qh6 {[%clk 0:01:28.1]} 16... Rae8+
{[%clk 0:02:03.8]} 17. Kf1 {[%clk 0:01:21.7]} 17... Qe4 {[%clk 0:01:47]} 18. Qd2
{[%clk 0:00:28.7]} 18... Bg4 {[%clk 0:01:42.6]} 19. Nd4 {[%clk 0:00:16.4]} 19...
Be2+ {[%clk 0:01:32.9]} 20. Kg1 {[%clk 0:00:15.4]} 20... c5 {[%clk 0:01:19.7]}
21. bxc6+ {[%clk 0:00:14]} 21... Nxc6 {[%clk 0:01:19.3]} 22. Na3 {[%clk
0:00:14.3]} 22... Nxd4 {[%clk 0:01:15]} 23. Bxd4 {[%clk 0:00:15.2]} 23... Bxd4
{[%clk 0:01:13.8]} 24. cxd4 {[%clk 0:00:16.1]} 24... Qxd4 {[%clk 0:01:14]} 25.
Qg5 {[%clk 0:00:15.4]} 25... Rxg7 {[%clk 0:01:06.4]} 26. Qb5+ {[%clk 0:00:12.4]}
26... Ke7 {[%clk 0:01:02]} 27. Re1 {[%clk 0:00:12.3]} 27... Rxg2+ {[%clk
0:00:58.1]} 28. Kxg2 {[%clk 0:00:11.2]} 28... Qg4# {[%clk 0:00:58.7]} 0-1

[Event "Late-Titled-Tuesday-Blitz-June-25-2024"]
[Site "Chess.com"]
[Date "2024.06.25"]
[Round "2"]
[White "cthake"]
[Black "erlesfar"]
[Result "0-1"]
[WhiteElo "1846"]
[BlackElo "2429"]
[TimeControl "180+1"]
[EndTime "14:15:52 PDT"]
[Termination "erlesfar won by checkmate"]

1. e4 {[%clk 0:03:00.9]} 1... d5 {[%clk 0:02:38.4]} 2. exd5 {[%clk 0:03:00.2]}
2... Nf6 {[%clk 0:02:37.6]} 3. Nc3 {[%clk 0:02:59.4]} 3... Nxd5 {[%clk
0:02:37.1]} 4. Nxd5 {[%clk 0:02:58.6]} 4... Qxd5 {[%clk 0:02:36.4]} 5. Qf3
{[%clk 0:02:59.2]} 5... Qxf3 {[%clk 0:02:34.9]} 6. Nxf3 {[%clk 0:02:59.3]} 6...
Nc6 {[%clk 0:02:35.1]} 7. Bb5 {[%clk 0:02:58.8]} 7... Bd7 {[%clk 0:02:35.2]} 8.
O-O {[%clk 0:02:52.3]} 8... e6 {[%clk 0:02:34.1]} 9. d4 {[%clk 0:02:49.4]} 9...
O-O-O {[%clk 0:02:31.2]} 10. c3 {[%clk 0:02:49.2]} 10... h6 {[%clk 0:02:29.1]}
11. Bxc6 {[%clk 0:02:49]} 11... Bxc6 {[%clk 0:02:28.6]} 12. Ne5 {[%clk
0:02:49.6]} 12... Be8 {[%clk 0:02:28.5]} 13. Be3 {[%clk 0:02:47]} 13... f6
{[%clk 0:02:26.1]} 14. Nf3 {[%clk 0:02:44.3]} 14... Bc6 {[%clk 0:02:25.9]} 15.
Nd2 {[%clk 0:02:36.5]} 15... g5 {[%clk 0:02:24.3]} 16. Nb3 {[%clk 0:02:28.6]}
16... h5 {[%clk 0:02:18]} 17. Rad1 {[%clk 0:02:27.8]} 17... h4 {[%clk
0:02:15.9]} 18. c4 {[%clk 0:02:25]} 18... h3 {[%clk 0:02:12.6]} 19. f3 {[%clk
0:02:07.1]} 19... hxg2 {[%clk 0:02:10.2]} 20. Kxg2 {[%clk 0:02:06.8]} 20... g4
{[%clk 0:02:07.4]} 21. d5 {[%clk 0:02:02.7]} 21... exd5 {[%clk 0:02:05.5]} 22.
cxd5 {[%clk 0:01:59]} 22... Bxd5 {[%clk 0:02:05.2]} 23. Nd4 {[%clk 0:01:57.6]}
23... Bd6 {[%clk 0:02:01.3]} 24. Rh1 {[%clk 0:01:47]} 24... gxf3+ {[%clk
0:01:56.3]} 25. Nxf3 {[%clk 0:01:44.6]} 25... Rdg8+ {[%clk 0:01:52]} 26. Kf2
{[%clk 0:01:44.5]} 26... Bxf3 {[%clk 0:01:51.6]} 27. Kxf3 {[%clk 0:01:43.4]}
27... Rh3+ {[%clk 0:01:51]} 28. Kf2 {[%clk 0:01:41.8]} 28... Bxh2 {[%clk
0:01:44.8]} 29. Bf4 {[%clk 0:01:34.9]} 29... Bg3+ {[%clk 0:01:39.7]} 30. Bxg3
{[%clk 0:01:34.4]} 30... Rhxg3 {[%clk 0:01:39.7]} 31. Rh7 {[%clk 0:01:29.6]}
31... Rg2+ {[%clk 0:01:36.1]} 32. Kf3 {[%clk 0:01:29.2]} 32... Rxb2 {[%clk
0:01:34.8]} 33. Rdd7 {[%clk 0:01:27.5]} 33... Rc2 {[%clk 0:01:34.3]} 34. Rdf7
{[%clk 0:01:27.2]} 34... Rc6 {[%clk 0:01:32.1]} 35. Rh6 {[%clk 0:01:26]} 35...
b5 {[%clk 0:01:26.9]} 36. Rhxf6 {[%clk 0:01:21.2]} 36... Rxf6+ {[%clk
0:01:26.5]} 37. Rxf6 {[%clk 0:01:21.8]} 37... Kb7 {[%clk 0:01:26.4]} 38. Ke4
{[%clk 0:01:16.9]} 38... c6 {[%clk 0:01:25.1]} 39. Kd4 {[%clk 0:01:14.9]} 39...
Kb6 {[%clk 0:01:24.7]} 40. Rf3 {[%clk 0:01:10.9]} 40... a5 {[%clk 0:01:22.5]}
41. a3 {[%clk 0:01:11.1]} 41... Rg4+ {[%clk 0:01:20.4]} 42. Kc3 {[%clk
0:01:09.7]} 42... b4+ {[%clk 0:01:18.7]} 43. axb4 {[%clk 0:01:10]} 43... axb4+
{[%clk 0:01:18.8]} 44. Kb3 {[%clk 0:01:10.1]} 44... Kb5 {[%clk 0:01:18.5]} 45.
Rf5+ {[%clk 0:01:09.6]} 45... c5 {[%clk 0:01:18.4]} 46. Rf8 {[%clk 0:01:08.6]}
46... Rg3+ {[%clk 0:01:17.3]} 47. Kc2 {[%clk 0:01:08.5]} 47... b3+ {[%clk
0:01:14.2]} 48. Kb2 {[%clk 0:01:07.5]} 48... Kb4 {[%clk 0:01:14]} 49. Rb8+
{[%clk 0:01:07.3]} 49... Kc4 {[%clk 0:01:14]} 50. Ra8 {[%clk 0:01:06.3]} 50...
Rg2+ {[%clk 0:01:14]} 51. Kb1 {[%clk 0:01:05.4]} 51... Kc3 {[%clk 0:01:12.6]}
52. Rc8 {[%clk 0:01:03.9]} 52... Rg1# {[%clk 0:01:11.5]} 0-1

[Event "Late-Titled-Tuesday-Blitz-June-25-2024"]
[Site "Chess.com"]
[Date "2024.06.25"]
[Round "2"]
[White "patzer-reloaded"]
[Black "maurovargas01"]
[Result "1-0"]
[WhiteElo "2433"]
[BlackElo "1935"]
[TimeControl "180+1"]
[EndTime "14:15:55 PDT"]
[Termination "patzer-reloaded won by checkmate"]

1. d4 {[%clk 0:03:00.9]} 1... d5 {[%clk 0:02:58.9]} 2. c4 {[%clk 0:02:59.8]}
2... c6 {[%clk 0:02:57.8]} 3. Nf3 {[%clk 0:02:59]} 3... e6 {[%clk 0:02:57.8]} 4.
Nc3 {[%clk 0:02:58.3]} 4... dxc4 {[%clk 0:02:57.9]} 5. e4 {[%clk 0:02:57.5]}
5... b5 {[%clk 0:02:55.5]} 6. Be2 {[%clk 0:02:57.3]} 6... Bb4 {[%clk 0:02:55.4]}
7. O-O {[%clk 0:02:56.9]} 7... Bxc3 {[%clk 0:02:55.6]} 8. bxc3 {[%clk
0:02:56.2]} 8... Nf6 {[%clk 0:02:56.5]} 9. Qc2 {[%clk 0:02:41.2]} 9... Nbd7
{[%clk 0:02:52.3]} 10. a4 {[%clk 0:02:33.8]} 10... a6 {[%clk 0:02:50.5]} 11. Ba3
{[%clk 0:02:31.3]} 11... Nb6 {[%clk 0:02:39.7]} 12. Bc5 {[%clk 0:01:56.6]} 12...
Nxa4 {[%clk 0:02:36.2]} 13. Rxa4 {[%clk 0:01:56]} 13... bxa4 {[%clk 0:02:36.1]}
14. Qxa4 {[%clk 0:01:24.1]} 14... Bd7 {[%clk 0:02:30.8]} 15. Qc2 {[%clk
0:01:10.7]} 15... a5 {[%clk 0:02:24.6]} 16. Ne5 {[%clk 0:01:09.8]} 16... a4
{[%clk 0:02:18.6]} 17. Nxc4 {[%clk 0:01:09.2]} 17... Qb8 {[%clk 0:01:51]} 18.
Nd6+ {[%clk 0:00:58]} 18... Kf8 {[%clk 0:01:43.7]} 19. Nf5+ {[%clk 0:00:57]}
19... Kg8 {[%clk 0:01:40.3]} 20. Ne7+ {[%clk 0:00:55.2]} 20... Kf8 {[%clk
0:01:34.5]} 21. Nxc6+ {[%clk 0:00:56.1]} 21... Ke8 {[%clk 0:01:34.2]} 22. Nxb8
{[%clk 0:00:55.6]} 22... Rxb8 {[%clk 0:01:34.4]} 23. c4 {[%clk 0:00:52.8]} 23...
Ra8 {[%clk 0:01:21.6]} 24. Ba3 {[%clk 0:00:50.2]} 24... h5 {[%clk 0:01:16.7]}
25. e5 {[%clk 0:00:48.2]} 25... Ng8 {[%clk 0:01:11.4]} 26. Rb1 {[%clk
0:00:46.6]} 26... Ne7 {[%clk 0:01:08.6]} 27. Qc3 {[%clk 0:00:45]} 27... Bc6
{[%clk 0:01:03.7]} 28. Qb4 {[%clk 0:00:41.8]} 28... Nf5 {[%clk 0:00:57.6]} 29.
Bd3 {[%clk 0:00:40]} 29... Ra7 {[%clk 0:00:47.5]} 30. Qb8+ {[%clk 0:00:37.5]}
30... Kd7 {[%clk 0:00:45.8]} 31. Qxa7+ {[%clk 0:00:37.9]} 31... Kc8 {[%clk
0:00:43.8]} 32. Rb8# {[%clk 0:00:37.6]} 1-0

[Event "Late-Titled-Tuesday-Blitz-June-25-2024"]
[Site "Chess.com"]
[Date "2024.06.25"]
[Round "2"]
[White "guillembaches"]
[Black "Alex_Sahakyan2006"]
[Result "1-0"]
[WhiteElo "2552"]
[BlackElo "2725"]
[TimeControl "180+1"]
[EndTime "14:15:57 PDT"]
[Termination "guillembaches won by resignation"]

1. e4 {[%clk 0:03:00.9]} 1... c6 {[%clk 0:02:54.3]} 2. d4 {[%clk 0:02:59.8]}
2... d5 {[%clk 0:02:55]} 3. exd5 {[%clk 0:03:00.2]} 3... cxd5 {[%clk 0:02:55.9]}
4. Bd3 {[%clk 0:03:00.5]} 4... Nc6 {[%clk 0:02:55.1]} 5. c3 {[%clk 0:03:00.1]}
5... Nf6 {[%clk 0:02:55.1]} 6. Bf4 {[%clk 0:02:59.9]} 6... Bg4 {[%clk
0:02:54.8]} 7. Qb3 {[%clk 0:02:59.7]} 7... Qd7 {[%clk 0:02:52.2]} 8. Nd2 {[%clk
0:02:59.6]} 8... e6 {[%clk 0:02:52.2]} 9. Ngf3 {[%clk 0:02:59.7]} 9... Bxf3
{[%clk 0:02:52.3]} 10. Nxf3 {[%clk 0:02:59.3]} 10... Bd6 {[%clk 0:02:53]} 11.
Bxd6 {[%clk 0:02:59.5]} 11... Qxd6 {[%clk 0:02:53.9]} 12. O-O {[%clk 0:02:59.5]}
12... O-O {[%clk 0:02:53.3]} 13. Rae1 {[%clk 0:02:59.3]} 13... Rab8 {[%clk
0:02:51.2]} 14. Qc2 {[%clk 0:02:54.5]} 14... b5 {[%clk 0:02:50.2]} 15. a3 {[%clk
0:02:54.6]} 15... a5 {[%clk 0:02:50]} 16. Ne5 {[%clk 0:02:47.3]} 16... b4 {[%clk
0:02:50.2]} 17. cxb4 {[%clk 0:02:31.4]} 17... Rfc8 {[%clk 0:02:23]} 18. Qc5
{[%clk 0:02:18.8]} 18... Qxc5 {[%clk 0:02:18.9]} 19. bxc5 {[%clk 0:02:11.7]}
19... Nxd4 {[%clk 0:02:18]} 20. b4 {[%clk 0:02:02.3]} 20... axb4 {[%clk
0:02:17.3]} 21. axb4 {[%clk 0:02:03]} 21... Rxb4 {[%clk 0:02:17.8]} 22. Ra1
{[%clk 0:02:02.1]} 22... Rb7 {[%clk 0:02:07.4]} 23. Ba6 {[%clk 0:01:56.7]} 23...
Rbc7 {[%clk 0:02:03.5]} 24. Bxc8 {[%clk 0:01:54.5]} 24... Rxc8 {[%clk
0:02:04.4]} 25. c6 {[%clk 0:01:44.5]} 25... g6 {[%clk 0:01:57.2]} 26. Ra6 {[%clk
0:01:26.3]} 26... Ne4 {[%clk 0:01:53.4]} 27. Rb1 {[%clk 0:01:19.8]} 27... Ne2+
{[%clk 0:01:46.9]} 28. Kf1 {[%clk 0:01:13.6]} 28... Nd2+ {[%clk 0:01:47.1]} 29.
Kxe2 {[%clk 0:01:13.5]} 29... Nxb1 {[%clk 0:01:48]} 30. Kd3 {[%clk 0:01:05.5]}
30... f6 {[%clk 0:01:35.9]} 31. Nd7 {[%clk 0:01:03.6]} 31... Rc7 {[%clk
0:01:24.9]} 32. Nxf6+ {[%clk 0:00:53.4]} 32... Kf7 {[%clk 0:01:23.3]} 33. Nxh7
{[%clk 0:00:52.9]} 33... Ke7 {[%clk 0:01:13.3]} 34. Kc2 {[%clk 0:00:42.7]} 34...
Kd6 {[%clk 0:01:12.7]} 35. Kxb1 {[%clk 0:00:40.7]} 35... Rxh7 {[%clk 0:01:11.9]}
36. c7+ {[%clk 0:00:34.8]} 36... Kd7 {[%clk 0:01:12.2]} 37. Ra8 {[%clk
0:00:21.2]} 37... Kxc7 {[%clk 0:01:10.7]} 38. Ra7+ {[%clk 0:00:20.8]} 1-0